Cogmind - Beta 9.4 @@@ ROGUE MODE // 2020.03.07 @ 23:34:54 Player: Cipherpunk Result: Self-destructed Performance ------------- Evolutions (2) 1000 Regions Visited (3) 600 Robots Destroyed (77) 385 Value Destroyed (1718) 1718 Prototype IDs (2) 40 Alien Tech Used (0) 0 Bonus (0) 0 TOTAL SCORE: 3743 Bonus ------- None Cogmind --------- Core Integrity 44/550 Matter 61/300 Energy 100/100 System Corruption 0% Temperature Cool (0) Movement Core (1650) Ox32 Location -8/Materials Parts ------- > --- POWER (1) -------- (None) > --- PROPULSION (3) --- (None) > --- UTILITY (4) ------ Improved Heat Sink High-capacity Storage Unit High-capacity Storage Unit High-capacity Storage Unit > --- WEAPON (3) ------- (None) > --- INVENTORY (28) --- Deuterium Engine Deuterium Engine Compact Wheel Compact Wheel Improved Sensor Array Signal Interpreter Improved Targeting Computer Armor Integrity Analyzer Long-range Tractor Beam Advanced Beam Cannon Advanced Beam Cannon Light Cannon Plasma Cutter Mining Claw Peak State ------------ > --- POWER ------------ Deuterium Engine > --- PROPULSION ------- Light Treads Light Treads Light Treads > --- UTILITY ---------- High-capacity Storage Unit High-capacity Storage Unit High-capacity Storage Unit Reflective Plating > --- WEAPON ----------- Beam Rifle Improved Medium Laser Light Cannon > --- INVENTORY -------- Deuterium Engine Deuterium Engine Deuterium Engine Light Treads Light Treads Light Treads Light Treads Compact Wheel Compact Wheel Improved Heat Sink Improved Sensor Array Signal Interpreter Improved Targeting Computer Armor Integrity Analyzer Hardened Medium Armor Plating Pulse Rifle Advanced Beam Cannon Advanced Beam Cannon Heavy Particle Cannon Light Cannon Light Cannon Light Cannon Assault Cannon Mini Grenade Launcher Plasma Cutter Mining Claw [Rating: 23] Favorites ----------- Power Light Ion Engine Engine Light Ion Engine Power Core Light Nuclear Core Propulsion Compact Wheel Treads Light Treads Leg Aluminum Leg Wheel Compact Wheel Utility High-capacity Storage Unit Device Improved Heat Sink Storage High-capacity Storage Unit Processor Seismic Analyzer Protection Reflective Plating Weapon Improved Medium Laser Energy Gun Improved Medium Laser Energy Cannon Advanced Beam Cannon Ballistic Gun Assault Rifle Ballistic Cannon Light Cannon Launcher Mini Grenade Launcher Special Weapon Plasma Cutter Build | -11 -10 -9 -8 ------- Run | Scr Mat Mat Mat Slots Evolved 4 | . . 2 2 Power . | . . . . Propulsion 1 | . . . 1 Utility 2 | . . 2 . Weapon 1 | . . . 1 Parts Attached 64 | . 15 21 28 Power 8 | . 1 5 2 Engine 7 | . 1 4 2 Core 1 | . . 1 . Reactor . | . . . . Propulsion 18 | . 6 3 9 Treads 9 | . . . 9 Leg . | . . . . Wheel 9 | . 6 3 . Hover . | . . . . Flight . | . . . . Utility 12 | . 2 5 5 Device 5 | . . 3 2 Storage 3 | . 2 . 1 Processor 1 | . . 1 . Hackware . | . . . . Protection 3 | . . 1 2 Artifact . | . . . . Weapon 26 | . 6 8 12 Energy Gun 10 | . 3 3 4 Energy Cannon 4 | . . 3 1 Ballistic Gun 3 | . 3 . . Ballistic Cannon 6 | . . 1 5 Launcher 1 | . . . 1 Special Weapon 2 | . . 1 1 Impact Weapon . | . . . . Slashing Weapon . | . . . . Piercing Weapon . | . . . . Special Melee Weapon . | . . . . Unidentified Prototypes 2 | . . 2 . Parts Lost 33 | . 7 4 22 Power 5 | . 1 2 2 Propulsion 8 | . 1 . 7 Utility 3 | . . . 3 Weapon 17 | . 5 2 10 Highest Loss Streak 10 | . 4 1 10 Average Slot Usage (%) 97 | . 98 99 93 Engine 10 | . 13 9 8 Treads 7 | . . . 23 Leg 2 | . 7 . . Wheel 14 | . 20 22 . Device 4 | . . 10 3 Storage 25 | . 27 22 24 Processor 2 | . . 9 . Protection 2 | . . 1 7 Energy Gun 10 | . 12 5 13 Energy Cannon 2 | . . 7 . Ballistic Gun 7 | . 15 4 . Ballistic Cannon 4 | . . 2 9 Naked Turns . | . . . . Heaviest Build 125 | 13 73 77 125 Greatest Support 60 | 20 32 32 60 Greatest Overweight (x) 37 | . 4 2 37 Average Overweight (x) 2 | . 2 2 1 Largest Inventory Capacity 28 | . 20 20 28 Average Capacity 21 | . 19 20 26 Most Carried 27 | . 20 20 27 Average Carried 19 | . 16 19 21 Final Capacity 28 | 6 20 20 28 Final Carried 20 | 6 20 20 14 Class Distribution -------------------- 74% | Hauler-Mutant 23% | Hauler-Tank Dominant Class ---------------- Hauler-Mutant | -10/Materials Hauler-Mutant | -9/Materials Hauler-Tank | -8/Materials Resources | -11 -10 -9 -8 ----------- Run | Scr Mat Mat Mat Matter Collected 1143 | 181 292 335 335 Remotely . | . . . . Salvage Created 2273 | . 641 979 653 Parts 139 | . 48 46 45 Haulers Intercepted 4 | . 1 2 1 Recyclers Shooed 5 | . 2 1 2 Parts Field Recycled . | . . . . Retrieved Matter . | . . . . Parts Self-Destructed . | . . . . Prevented . | . . . . Kills | -11 -10 -9 -8 ------- Run | Scr Mat Mat Mat Combat Hostiles Destroyed 52 | . 13 15 24 Guns 26 | . 13 4 9 Cannons 20 | . . 11 9 AOE 5 | . . . 5 Classes Destroyed 11 | . 7 3 1 Worker 7 | . 3 2 2 Builder 2 | . . . 2 Hauler 4 | . 1 2 1 Recycler 3 | . 1 2 . Mechanic 1 | . . 1 . Operator 3 | . 2 1 . Watcher 5 | . 2 1 2 Swarmer 21 | . 6 3 12 Grunt 25 | . 7 8 10 Brawler 1 | . . 1 . Sentry 5 | . . 3 2 Best Kill Streak 15 | . 5 4 15 Combat Bots Only 10 | . 3 4 10 Max Kills in Single Turn 4 | . 1 1 4 Gunslinging . | . . . . Exploded 2 | . . . 2 Melee . | . . . . Uniques/NPCs Destroyed . | . . . . Combat | -11 -10 -9 -8 -------- Run | Scr Mat Mat Mat Damage Taken 4818 | . 730 740 3348 Core 830 | . 147 177 506 Absorbed by Shields . | . . . . Core Remaining (%) 65 | 100 41 55 . Volleys Fired 191 | . 60 63 68 Largest 3 | . 2 2 3 Hottest 173 | . 105 124 173 Shots Fired 391 | . 107 121 163 Gun 227 | . 107 56 64 Cannon 147 | . . 63 84 Launcher 6 | . . . 6 Special 11 | . . 2 9 Kinetic 181 | . 60 40 81 Thermal 201 | . 44 81 76 Explosive 6 | . . . 6 Electromagnetic 3 | . 3 . . Robot Hit Streak 12 | . 8 12 8 Robot Miss Streak 5 | . 5 2 5 Penetration Max . | . . . . Secondary Targets . | . . . . Shots Hit Robots 232 | . 66 74 92 Core Hits 114 | . 33 29 52 Critical Hits 5 | . 1 3 1 Critical Kills 4 | . 1 2 1 Critical Parts Destroyed 1 | . . 1 . Melee Attacks . | . . . . Impact . | . . . . Slashing . | . . . . Piercing . | . . . . Sneak Attacks . | . . . . Combat Hostiles . | . . . . Follow-up Attacks . | . . . . Damage Inflicted 4673 | . 828 1120 2725 Guns 1919 | . 828 401 690 Cannons 1482 | . . 697 785 Explosions 1181 | . . . 1181 Melee . | . . . . Ramming . | . . . . Kinetic 1406 | . 472 199 735 Thermal 2063 | . 333 921 809 Explosive 1181 | . . . 1181 Electromagnetic 23 | . 23 . . Impact . | . . . . Slashing . | . . . . Piercing . | . . . . Highest Corruption . | . . . . Average Corruption . | . . . . Corruption Purged . | . . . . Overload Shots . | . . . . Overflow Damage 77 | . . 26 51 Projectiles 35 | . . 26 9 Explosions 42 | . . . 42 Melee . | . . . . Knockbacks 14 | . . 1 13 Impact . | . . . . Kinetic 14 | . . 1 13 Secondary . | . . . . Self-Inflicted Damage 85 | . . . 85 Shots 3 | . . . 3 Rammed . | . . . . Targets Rammed . | . . . . Kicked . | . . . . Crushed . | . . . . Highest Temperature 563 | . 217 306 563 Average Temperature 149 | . 89 87 232 Received Heat Transfer 1722 | . 270 291 1161 Effects 24 | . 1 1 22 Shutdowns 1 | . . . 1 Energy Bleed 6 | . . 1 5 Interference 4 | . 1 . 3 Matter Decay 3 | . . . 3 Short Circuit 1 | . . . 1 Damage (minor) 3 | . . . 3 Damage (major) 5 | . . . 5 Damage (core) 1 | . . . 1 Siege Activations . | . . . . Robots Corrupted . | . . . . Combat Hostiles . | . . . . Parts Fried . | . . . . Impact Corruptions . | . . . . Robots Melted 1 | . . . 1 Combat Hostiles 1 | . . . 1 Parts Melted 6 | . . . 6 Heat Transferred 4582 | . 808 1924 1850 Parts Sabotaged . | . . . . Parts Stolen . | . . . . Parts Stripped . | . . . . Power Chain Reactions 1 | . 1 . . Missiles Intercepted . | . . . . Alert | -11 -10 -9 -8 ------- Run | Scr Mat Mat Mat Peak Influence 355 | . 231 308 355 Average Influence 150 | . 97 174 188 Maximum Alert Level 1 | . 1 1 1 Low Security (%) 70 | . 91 56 60 Level 1 29 | . 8 43 39 Level 2 . | . . . . Level 3 . | . . . . Level 4 . | . . . . Level 5 . | . . . . High Security . | . . . . Max Security . | . . . . Squads Dispatched 7 | . 2 2 3 Investigation . | . . . . Extermination . | . . . . Reinforcement 5 | . 2 2 1 Assault . | . . . . Garrison 2 | . . . 2 Intercept . | . . . . Construction Impeded 1 | . . . 1 Haulers Reinforced . | . . . . Stealth | -11 -10 -9 -8 --------- Run | Scr Mat Mat Mat Distress Signals 10 | . 3 4 3 Communications Jammed . | . . . . Distress Signals . | . . . . Times Spotted 93 | . 30 21 42 Peak Tracking Total 9 | . 6 7 9 Tactical Retreats 14 | . 1 1 12 Traps | -11 -10 -9 -8 ------- Run | Scr Mat Mat Mat Traps Triggered 1 | . . 1 . Indirectly . | . . . . Trap Hack Attempts . | . . . . Triggered . | . . . . Disarmed . | . . . . Reprogrammed . | . . . . Reused . | . . . . Traps Extracted . | . . . . Installed . | . . . . Triggered . | . . . . Machines | -11 -10 -9 -8 ---------- Run | Scr Mat Mat Mat Machines Disabled 2 | . 1 1 . Max in Single Turn 1 | . 1 1 . Machines Sabotaged . | . . . . Garrisons Compromised . | . . . . Overloaded Fab Kills . | . . . . Fab Network Shutdowns . | . . . . Hacking | -11 -10 -9 -8 --------- Run | Scr Mat Mat Mat Machines Accessed 11 | . 5 4 2 Terminals 11 | . 5 4 2 Fabricators . | . . . . Repair Stations . | . . . . Recycling Units . | . . . . Scanalyzers . | . . . . Garrison Access . | . . . . Total Hacks 35 | . 19 11 5 Successful 17 | . 9 7 1 Failed 18 | . 10 4 4 Catastrophic 3 | . 1 1 1 Database Lockouts . | . . . . Manual 25 | . 11 10 4 Terminals 35 | . 19 11 5 Fabricators . | . . . . Repair Stations . | . . . . Recycling Units . | . . . . Scanalyzers . | . . . . Garrison Access . | . . . . Terminal Hacks 8 | . 4 3 1 Robot Analysis 1 | . . . 1 Branch Access Points 1 | . . 1 . Terminal Index 1 | . . 1 . Locate Traps 3 | . 3 . . Hauler Manifests 1 | . 1 . . Zone Layout 1 | . . 1 . Fabricator Hacks . | . . . . Repair Station Hacks . | . . . . Recycling Unit Hacks . | . . . . Scanalyzer . | . . . . Garrison Access Hacks . | . . . . Unauthorized Hacks 27 | . 14 10 3 Terminals 9 | . 5 4 . Track 1 | . . 1 . Assimilate 1 | . 1 . . Botnet 6 | . 3 3 . Operators 1 | . 1 . . Fabricators . | . . . . Repair Stations . | . . . . Recycling Units . | . . . . Scanalyzers . | . . . . Garrison Access . | . . . . Data Cores Recovered . | . . . . Used . | . . . . Hacking Detections 10 | . 5 3 2 Full Trace Events 1 | . . 1 . Feedback Events . | . . . . Feedback Blocked . | . . . . Robot Schematics Acquired . | . . . . Robots Built . | . . . . Matter . | . . . . Time . | . . . . Total Robot Build Rating . | . . . . Part Schematics Acquired . | . . . . Parts Built . | . . . . Matter . | . . . . Time . | . . . . Total Part Build Rating . | . . . . Parts Repaired . | . . . . Time . | . . . . Parts Recycled . | . . . . Recycled Matter . | . . . . Retrieved Matter . | . . . . Retrieved Components . | . . . . Parts Scanalyzed . | . . . . Part Schematics Acquired . | . . . . Parts Damaged . | . . . . Bothacking | -11 -10 -9 -8 ------------ Run | Scr Mat Mat Mat Used RIF Installer . | . . . . Robots Hacked . | . . . . Non-combat . | . . . . Combat . | . . . . Robot Hacks Applied . | . . . . Relay Couplers Released . | . . . . Robots Rewired . | . . . . Allies Hacked . | . . . . Hacks Repelled . | . . . . Allies | -11 -10 -9 -8 -------- Run | Scr Mat Mat Mat Total Allies 1 | . 1 . . Largest Group 1 | . 1 1 . Highest-Rated Group 10 | . 10 10 . Highest-Rated Ally 10 | . 10 10 . Total Orders 9 | . 2 7 . GOTO 5 | . 1 4 . FOLLOW 4 | . 1 3 . Ally Attacks . | . . . . Total Damage . | . . . . Kills . | . . . . Allies Corrupted . | . . . . Allies Melted . | . . . . Intel | -11 -10 -9 -8 ------- Run | Scr Mat Mat Mat Robot Analysis Total 1 | . . . 1 Derelict Logs Recovered . | . . . . Drone Launches . | . . . . Drone Recoveries . | . . . . Exploration | -11 -10 -9 -8 ------------- Run | Scr Mat Mat Mat Turns Passed 2940 | . 1112 856 972 Spaces Moved 1436 | 1 663 391 381 Core 1 | . . . 1 Treads 365 | . . . 365 Legs 24 | 1 23 . . Wheels 1046 | . 640 391 15 Hover . | . . . . Flight . | . . . . Fastest Speed 120 | 120 120 120 120 Average Speed 140 | 120 127 120 184 Slowest Speed 1900 | 120 140 120 1900 Overloaded Moves . | . . . . Propulsion Burnouts . | . . . . Robots Hopped . | . . . . Cave-ins Triggered . | . . . . Exploration Rate (%) 38 | 2 92 34 24 Regions Visited 3 Branch Regions . Pre-discovered Areas . | . . . . Known Exits Taken . | . . . . Unknown Exits Taken 3 | 1 1 1 . Scrap Searched . | . . . . Spaces Dug . | . . . . Terrain Destroyed 54 | . 5 . 49 Melee . | . . . . Projectile 5 | . . . 5 AOE 49 | . 5 . 44 Actions | -11 -10 -9 -8 --------- Run | Scr Mat Mat Mat Total 2001 | . 833 659 509 Wait 202 | . 49 146 7 Move 1433 | . 662 390 381 Hop . | . . . . Pick Up 67 | . 33 20 14 Fast Attach 10 | . 2 6 2 Attach 32 | . 8 6 18 Detach 3 | . . . 3 Swap 22 | . 5 9 8 Drop 41 | . 14 19 8 Fire 191 | . 60 63 68 Melee . | . . . . Ram . | . . . . Kick . | . . . . Crush . | . . . . Escape Stasis . | . . . . Rewire . | . . . . Trap . | . . . . Miscellaneous . | . . . . Route ------- -11/Scrapyard -10/Materials (discovered 3 exits: *Mat x2 / [*Min]) -9/Materials (discovered 3 exits: *Mat / *Min x2) -8/Materials (discovered 1 exit: [*Sto]) History --------- Turn | Location | Event 1 | -11/Scrapyard | Discovered new exit (range 0) 1 | -11/Scrapyard | Entered Materials 331 | -10/Materials | Build established: Hauler-Mutant 463 | -10/Materials | Discovered new exit (range 12) 578 | -10/Materials | Discovered new exit (range 8) 611 | -10/Materials | Core integrity fell below 50% 644 | -10/Materials | Lost 4 parts (1p1n2w) 905 | -10/Materials | Discovered new exit (range 9) 1113 | -10/Materials | Entered another Materials area 1113 | -9/Materials | Accompanied by 1 ally 1113 | -9/Materials | Evolved 2 slots: Utility x2 1497 | -9/Materials | Discovered new exit (range 6) 1901 | -9/Materials | Identified exit to Mines 1963 | -9/Materials | Discovered new exit (range 7) 1969 | -9/Materials | Entered another Materials area 1969 | -8/Materials | Evolved 2 slots: Propulsion x1, Weapon x1 2199 | -8/Materials | Lost 3 parts (1u2w) 2225 | -8/Materials | Discovered new exit (range 10) 2560 | -8/Materials | Build established: Hauler-Tank 2774 | -8/Materials | Garrison activated, responded to threat 2799 | -8/Materials | Core integrity fell below 50% 2821 | -8/Materials | Lost 9 parts (1p4n1u3w) 2850 | -8/Materials | Destroyed 10 combat bots 2921 | -8/Materials | Core integrity fell below 20% 2941 | -8/Materials | Self-destructed Last Messages --------------- 02910_ U-05 Engineer lays Concrete. 02911_ K-01 Serf collects debris. 02911_ Penetrated by Slug. 02911_ K-01 Serf destroyed. 02912_ R-06 Scavenger collects Lgt. Ion Engine. 02914_ Penetrated by Slug. 02915_ U-05 Engineer builds a Wall. 02916_ U-05 Engineer knocked back. 02923_ Penetrated by Slug. 02923_ Deuterium Engine destroyed. 02923_ A-02 Transporter destroyed. 02923_ Lgt. Cannon destroyed. 02927_ U-05 Engineer lays Concrete. 02928_ K-01 Serf collects debris. 02932_ Penetrated by Slug. 02932_ U-05 Engineer destroyed. 02932_ K-01 Serf collects debris. 02938_ Penetrated by Slug. 02938_ Assault Cannon destroyed. 02941_ K-01 Serf collects debris. Map ----- +----------------------------------------------------+ | ?????????????????????????????????????????????????? | | ?????????????????????????????????????????????????? | | ???????????????????????? ???????????????????????? | | ????????????????????#### ??????????????????????? | | ???????????????????? ??? ??????????????????? | | ???????????????????? "G" ??????????????????? | | ???????????????????? " " ???????????????????? | | ????????????????????# ????????????????????? | | ????????????????????# ????????????????????? | | ????????????????????# ?????????????????????? | | ????????????????????# ??????????????????????? | | ????????????????????# ???????????????????????? | | ????????????????????# ????????????????????????? | | ??????????????? """?# ##?###???????????????????? | | ??????????????? # [# ## #???????????????????? | | ??????????????? % ???????????????????? | | ???????????????"" ???????????????????? | | ???????????????"Y % ###?????????????????? | | ???????????????"" ]] #?????????????????? | | ????????????? +%" % ] ]= #?????????????????? | | ?????????????????# [ ]]!% #?????????????????? | | ??????????????????# =## #?????????????????? | | ??????????????????# ## !#????????########## | | ???????????#################r %#????????# | | ????????+### =!!%[! ##???????# | | ??????? k a w @!=%! ##???????# | | ??????? ^ ^ = =!* ##???????# | | ???????? ^ g =% *%= #????????# | | ??????? ! #########????????# =[ | | ???????????## ^ #????????????????# [ | | ????????????# h^ #????????????????########+# | | ????????????# "" #??????????????????????# | | ????######### "" ! #???????##########?????# | | ????? # """ #???????# #???###### | | ????? # a #???????# #???# | | ???# """ # #???????# ! #???# | | ???# """"" # #???????# ##### """ | | ???# """"" + #???????# = + ## """ | | ???# """"" # #???????# = # ## """ | | ???# """ # ###+#######????# #= ## | | ???# # # #????# #!%#?? | | ???# # # [ #????# # #####+# | | ???########## # #????########## *! ^ | | ????????????# # #???########### %[!* | | ????????????# ###########???# !#%######+# | | ????????????# # #???# ! #%## | | ????????????# + #???# + ## "" | | ????????????# # #???# % #%## "T | | ????????????# # ############/##=## "" | | ????????????# # """ / =*## | +----------------------------------------------------+ Best States ------------- Heat Dissipation 45 Energy Generation 14 Energy Capacity 275 Matter Stores 300 Matter Capacity 300 Sight Range 16 Terrain Scan Range 14 Terrain Scan Density 60 Armor Coverage 225 Resistance: TH 10 Evasion (%) 40 Recoil Reduction 3 Item Schematics ----------------- None Robot Schematics ------------------ None Fabricated ------------ Nothing Alien Tech Used ----------------- None Achievements -------------- None Challenges ------------ None Game ------ Seed MiningFactoryPenetrator Manual? 0 Play Time 00:44:07 Cumulative 104.0 hours Start 2020.03.06 @ 22:49:11 End 2020.03.07 @ 23:34:54 Sessions 2 Manual Loads 0 Difficulty Rogue Special Mode None Game No. 92 Rogue 92 Adventurer 0 Explorer 0 Win Type - Total 2 Types 2/0/0/0/0/0/0 Lore% 53 Gallery% 59 Achievement% 42 Wizard Run 0 Options --------- ASCII 0 Keyboard 1 Movement Numpad Keybinds 0 Fullscreen 2 Font 24/Smallcaps Map View 76x50 Tactical HUD 1 Map Filters NONE Filters NONE Steam 1 RUN: eaf186cd-a36d-47a3-8bcd-63728b044d9c